bitfinex-derivatives/quotes_ETHF0:USTF0_20241231
["timestamp","ask_amount","ask_price","bid_price","bid_amount"]
[1735630290691,0.29845,3355.6,3355.5,0.29844]
[1735630290891,0.29845,3355.6,3355.5,41.09844]
[1735630292182,0.29845,3355.6,3355.5,40.8]
[1735630292392,0.29845,3355.5,3355.4,0.4392]
[1735630292892,0.29845,3355.5,3355.4,41.2392]
[1735630293392,0.29845,3355.5,3355.4,41.53765]
[1735630293594,3.2078,3355.7,3355.6,0.29844]
[1735630293595,3.50624,3355.7,3355.6,0.29844]
[1735630294093,0.29844,3355.6,3355.5,0.29844]
[1735630294695,3.50623,3355.7,3355.6,0.29844]
[1735630297793,2.2478318,3355.9,3355.4,41.2392]
[1735630297993,3.6445,3356.1,3355.5,0.74611]
[1735630298199,3.2078,3356.1,3356.0,0.2984]
[1735630299502,0.29838,3356.2,3356.1,0.29839]
[1735630299903,0.2984,3356.1,3356.0,0.29839]
[1735630300102,0.29836,3356.5,3356.3,0.29837]
[1735630300403,0.29838,3356.4,3356.3,0.29837]
[1735630300597,0.29836,3356.5,3356.4,0.29835]
[1735630301602,5.4556318,3356.6,3356.5,0.29833]
[1735630301603,5.7539618,3356.6,3356.5,0.29833]
[1735630301996,3.50613,3356.6,3356.5,0.29833]
[1735630302505,3.2078,3356.6,3356.1,3.2078]
[1735630302705,0.29834,3356.5,3356.4,0.29833]
[1735630304904,3.2078,3356.6,3356.1,3.2078]
[1735630305108,3.2078,3356.6,3356.5,0.29833]
[1735630307094,3.50612,3356.6,3356.5,0.29833]
[1735630307299,3.2078,3356.6,3356.5,0.29833]
[1735630308110,3.2078,3357.0,3356.5,0.29833]
[1735630308408,2.2478318,3357.4,3356.8,3.2078]
[1735630308607,0.29826,3357.3,3357.2,0.29826]
[1735630308802,0.29826,3357.3,3356.9,40.8]
[1735630308803,2.2478318,3357.4,3356.9,41.2312]
[1735630309108,3.2078,3357.5,3357.4,0.29825]
[1735630309611,0.29823,3357.6,3357.5,0.29824]
[1735630309804,2.5460618,3357.7,3357.6,0.29823]
[1735630310007,0.29823,3357.6,3357.5,0.29823]
[1735630311211,2.2478318,3357.7,3357.2,0.4463]
[1735630311411,0.29826,3357.4,3357.3,0.29825]
[1735630312513,0.29824,3357.5,3357.4,0.29824]
[1735630312812,0.29825,3357.4,3357.3,0.29825]
[1735630313514,0.29825,3357.4,3356.9,41.2312]
[1735630313515,2.2478318,3357.4,3356.9,41.2312]
[1735630313714,0.29829,3357.0,3356.9,0.29828]
[1735630313915,2.5461118,3357.1,3357.0,0.29828]
[1735630314612,0.9139,3357.3,3356.8,3.2078]
[1735630314811,0.75476,3357.3,3357.2,0.29826]
[1735630315503,0.4565,3357.3,3356.8,3.2078]
[1735630315708,0.29828,3357.1,3357.0,0.29828]
[1735630318009,2.2478318,3357.1,3356.6,0.4428]
[1735630318212,0.29829,3357.0,3356.9,0.29829]
[1735630319904,0.29829,3357.0,3356.8,0.2983]
[1735630320303,2.2478318,3357.1,3356.9,0.29829]
[1735630320304,2.5461118,3357.1,3356.9,0.29829]
[1735630320506,2.2478318,3357.1,3356.9,41.09829]
[1735630320709,2.5461018,3357.1,3356.9,41.09829]
[1735630321216,2.5461018,3357.1,3356.9,40.8]
[1735630321416,0.29828,3357.0,3356.9,40.8]
[1735630321817,2.2478318,3357.1,3356.9,40.8]
[1735630322015,2.5461118,3357.1,3356.9,41.09829]
[1735630322809,2.5461118,3357.1,3356.8,0.2983]
[1735630322810,0.29828,3357.0,3356.8,0.2983]
[1735630323018,2.2478318,3357.1,3356.7,0.4571]
[1735630323217,0.4565,3357.3,3356.8,40.8]
[1735630323417,0.4565,3357.3,3357.2,0.29826]
[1735630324823,2.5460818,3357.4,3357.1,0.29827]
[1735630325021,2.2478318,3357.4,3357.2,0.71326]
[1735630326422,2.5460818,3357.4,3357.2,0.415]
[1735630326620,2.2478318,3357.4,3357.2,0.415]
[1735630328421,0.4596,3357.6,3357.5,0.29824]
[1735630328819,3.935,3358.0,3357.6,0.29822]
[1735630329118,0.2982,3357.9,3357.6,0.29823]
[1735630329318,3.6368,3358.0,3357.7,0.29822]
[1735630329319,3.935,3358.0,3357.7,0.29822]
[1735630329824,0.7272,3358.0,3357.7,0.29822]
[1735630330018,0.7272,3358.0,3357.3,3.6607]
[1735630330323,0.7272,3358.0,3357.6,0.29822]
[1735630330824,0.29821,3357.9,3357.7,0.4288]
[1735630331022,0.4505,3357.8,3357.7,0.4288]
[1735630331219,2.6983318,3357.8,3357.3,3.6607]
[1735630331424,2.6983318,3357.8,3357.4,0.29824]
[1735630331425,0.29822,3357.7,3357.4,0.29824]
[1735630332026,2.2478318,3357.5,3357.3,0.4288]
[1735630332321,0.29825,3357.4,3357.3,0.4288]
[1735630332525,2.2478318,3357.5,3356.9,3.96678]
[1735630332725,0.4237,3357.6,3356.9,3.6685]
[1735630332726,0.29827,3357.1,3356.9,3.6685]
[1735630332921,2.5461018,3357.2,3356.9,3.50609]
[1735630333117,0.4356,3357.1,3356.9,3.50609]
[1735630333822,2.2478318,3357.2,3357.1,0.29827]
[1735630334028,2.9816818,3357.5,3357.2,0.29826]
[1735630334216,2.2478318,3357.5,3357.4,0.29825]
[1735630334528,2.2478318,3357.5,3357.3,0.4387]
[1735630334723,2.2478318,3357.5,3357.4,0.4511]
[1735630335525,2.2478318,3357.5,3357.0,0.4407]
[1735630335728,0.29826,3357.3,3357.1,0.4511]
[1735630335931,0.73386,3357.2,3357.1,0.4511]
[1735630336427,0.4356,3357.2,3357.1,0.4511]
[1735630336624,0.73386,3357.2,3357.1,0.4511]
[1735630337330,2.9816918,3357.2,3357.1,0.4511]
[1735630337822,2.9816918,3357.2,3357.0,0.4387]
[1735630338231,2.6834318,3357.2,3357.0,0.4387]
[1735630338531,0.29827,3357.1,3357.0,0.4387]
[1735630339129,0.73387,3357.2,3357.0,0.73698]
[1735630339627,0.4356,3357.2,3357.0,0.4387]
[1735630339830,0.29827,3357.1,3357.0,0.4387]
[1735630340021,0.4356,3357.2,3357.0,0.4387]
[1735630340217,0.73387,3357.2,3357.0,0.4387]
[1735630341323,0.4356,3357.2,3357.1,0.29827]
[1735630342027,0.73386,3357.2,3357.0,0.4387]
[1735630343330,0.4356,3357.2,3357.1,0.29827]
[1735630344220,3.50603,3357.6,3357.0,0.8631]
[1735630344423,3.50603,3357.6,3357.3,0.29825]
[1735630345121,3.50603,3357.6,3357.4,0.4543]
[1735630345324,0.4428,3357.8,3357.4,0.4543]
[1735630345519,3.6671,3358.0,3357.5,0.29824]
[1735630345520,3.506,3358.0,3357.5,0.29824]
[1735630345723,3.506,3358.0,3357.7,0.29822]
[1735630346823,0.29822,3357.7,3357.4,0.75254]
[1735630347222,0.72952,3357.7,3357.4,0.75254]
[1735630347426,0.72952,3357.7,3357.4,5.42625571]
[1735630347626,0.4313,3357.7,3357.4,5.42625571]
[1735630347828,0.4313,3357.7,3357.5,0.29824]
[1735630348028,0.4313,3357.7,3357.4,5.12801571]
[1735630348029,0.4313,3357.7,3357.6,0.29823]
[1735630348336,0.4313,3357.7,3357.4,5.12801571]
[1735630348538,0.4313,3357.7,3357.6,0.29823]
[1735630350134,0.29823,3357.6,3357.4,0.4543]
[1735630350533,0.29823,3357.6,3357.4,0.75255]
[1735630352540,0.29823,3357.6,3357.4,0.4543]
[1735630353336,0.8853,3357.7,3357.4,0.4543]
[1735630353535,2.2478318,3357.9,3357.4,0.4543]
[1735630353741,2.5460318,3357.9,3357.7,0.29821]
[1735630353943,2.2478318,3357.9,3357.8,0.29821]
[1735630354143,3.50599,3358.0,3357.8,0.29821]
[1735630354343,3.50599,3358.0,3357.9,0.424]
[1735630354544,3.50599,3358.0,3357.9,0.8413]
[1735630354841,0.29819,3358.0,3357.9,0.8413]
[1735630355032,0.29819,3358.1,3357.9,0.8413]
[1735630355341,2.6787318,3358.2,3357.9,0.8413]
[1735630355541,0.4309,3358.2,3357.9,0.8413]
[1735630355743,0.4309,3358.2,3358.1,0.29818]
[1735630356643,0.4309,3358.2,3358.0,0.4489]
[1735630356644,2.2478318,3358.7,3358.0,0.4489]
[1735630356840,2.6818318,3358.7,3358.2,0.29817]
[1735630357042,0.29814,3358.6,3358.2,0.29817]
[1735630357441,0.29814,3358.6,3358.2,40.8]
[1735630357744,0.29814,3358.6,3358.3,0.29816]
[1735630358141,0.29814,3358.6,3358.4,0.4477]
[1735630358444,2.9799718,3358.7,3358.4,0.74585]
[1735630358645,2.9799718,3358.7,3358.5,0.4383]
[1735630360342,2.5459718,3358.7,3358.5,0.4383]
[1735630360540,2.2478318,3358.7,3358.5,0.4383]
[1735630360746,2.5459618,3358.7,3358.5,0.4383]
[1735630363644,0.29814,3358.6,3358.5,0.4383]
[1735630366345,0.29814,3358.6,3357.8,8.17972571]
[1735630366346,0.29818,3358.2,3357.8,8.17972571]
[1735630366545,0.29818,3358.2,3358.1,0.4189]
[1735630366946,2.5460018,3358.3,3358.1,0.4189]
[1735630367352,0.29818,3358.2,3358.1,0.4189]
[1735630372254,2.2478318,3358.3,3357.9,0.4333]
[1735630372550,0.29819,3358.1,3357.9,0.4333]
[1735630373154,2.2478318,3358.3,3357.9,0.4333]
[1735630373155,0.29819,3358.0,3357.9,0.4333]
[1735630373347,2.2478318,3358.0,3357.8,44.0078]
[1735630373550,0.7437,3357.9,3357.8,44.0078]
[1735630374756,2.2478318,3358.0,3357.8,44.0078]
[1735630375053,2.2478318,3358.0,3357.8,44.30601]
[1735630375656,2.5460218,3358.0,3357.8,44.30601]
[1735630378056,2.2478318,3358.0,3357.9,0.2982]
[1735630379849,2.2478318,3358.3,3357.8,44.0078]
[1735630380152,2.2478318,3358.3,3357.9,0.2982]
[1735630380350,2.2478318,3358.3,3357.8,44.0078]
[1735630380351,2.2478318,3358.3,3358.2,0.29818]
[1735630380653,2.2478318,3358.3,3358.0,0.4508]
[1735630380654,2.5460018,3358.3,3358.1,0.29818]
[1735630380851,2.2478318,3358.3,3358.2,0.29818]
[1735630381560,2.2478318,3358.6,3358.5,0.29815]
[1735630383562,2.2478318,3358.6,3358.3,3.2078]
[1735630384260,2.2478318,3358.6,3358.5,0.29815]
[1735630385857,3.1248318,3358.9,3358.3,3.2078]
[1735630386172,2.6797318,3358.9,3358.7,0.29813]
[1735630386462,2.6797318,3358.9,3358.8,0.9005]
[1735630388463,2.9778418,3358.9,3358.8,0.9005]
[1735630389064,2.6797318,3358.9,3358.3,3.2078]
[1735630389259,2.2478318,3358.6,3358.4,0.75055]
[1735630389767,2.2478318,3358.6,3358.5,0.29815]
[1735630391065,2.2478318,3358.6,3358.4,0.4524]
[1735630391364,2.2478318,3358.6,3358.2,5.10521571]
[1735630391365,0.29817,3358.3,3358.2,4.67371571]
[1735630391562,0.29818,3358.2,3358.0,4.67371571]
[1735630391762,0.75218,3358.2,3358.0,4.67371571]
[1735630392462,0.454,3358.2,3357.9,0.4245]
[1735630392658,2.2478318,3358.0,3357.6,4.67371571]
[1735630392957,2.5460518,3357.7,3357.6,4.67371571]
[1735630393358,0.29823,3357.6,3357.5,44.0078]
[1735630394664,2.5460518,3357.7,3357.5,44.0078]
[1735630395958,2.2478318,3357.7,3357.5,44.0078]
[1735630396164,0.29823,3357.6,3357.5,44.0078]
[1735630396770,2.2478318,3357.7,3357.5,40.8]
[1735630396771,2.5460518,3357.7,3357.5,40.8]
[1735630400468,2.2478318,3357.7,3357.5,40.8]
[1735630400668,0.72753,3357.6,3357.5,40.8]
[1735630400873,0.4293,3357.6,3357.5,40.8]
[1735630403664,0.72753,3357.6,3357.5,40.8]
[1735630403964,0.4293,3357.6,3357.5,40.8]
[1735630404870,0.29822,3357.7,3357.5,40.8]
[1735630405169,0.29822,3357.8,3357.6,0.4306]
[1735630405669,5.4556318,3357.9,3357.7,0.443]
[1735630405870,5.4556318,3357.9,3357.8,0.29821]
[1735630405871,2.2478318,3357.9,3357.8,0.29821]
[1735630406767,2.2478318,3357.9,3357.7,0.443]
[1735630406967,0.29821,3357.8,3357.7,0.443]
[1735630407269,0.29823,3357.7,3357.5,44.0078]
[1735630407569,2.2478318,3357.6,3357.3,5.55211571]
[1735630407771,2.2478318,3357.6,3357.4,0.29825]
[1735630408069,2.5460618,3357.6,3357.3,46.65036571]
[1735630408264,2.5460618,3357.6,3357.3,41.97665]
[1735630408461,2.2478318,3357.6,3357.3,41.6784]
[1735630408669,0.29824,3357.5,3357.3,41.6784]
[1735630409169,0.29826,3357.2,3356.9,7.01057357]
[1735630409369,3.2078,3357.0,3356.7,7.64615606]
[1735630409572,0.29832,3356.6,3356.5,1.84546839]
[1735630409767,3.50612,3356.6,3356.5,1.84546839]
[1735630410774,0.29835,3356.2,3356.1,3.2078]
[1735630411370,0.75725,3356.2,3356.1,3.2078]
[1735630413174,4.26311498,3356.2,3356.1,3.2078]
[1735630414077,0.29837,3356.0,3355.8,3.2078]
[1735630415174,0.29837,3356.0,3355.9,40.8]
[1735630415575,2.5462018,3356.0,3355.9,40.8]
[1735630415771,0.29839,3355.8,3355.7,0.4602]
[1735630416175,0.29839,3355.8,3355.7,41.2602]
[1735630422080,0.29839,3355.8,3355.1,3.2078]
[1735630422081,0.29844,3355.3,3355.1,3.2078]
[1735630422384,0.29844,3355.3,3354.9,0.29846]
[1735630422385,2.5462718,3355.3,3354.9,0.29846]
[1735630422682,2.5462718,3355.3,3355.0,40.8]
[1735630422878,2.2478318,3355.3,3355.0,40.8]
[1735630423085,0.29844,3355.2,3355.0,40.8]
[1735630424680,2.5462718,3355.3,3355.0,41.09846]
[1735630425780,2.2478318,3355.3,3355.0,41.09846]
[1735630425982,2.2478318,3355.3,3355.0,40.8]
[1735630426283,2.2478318,3355.3,3354.7,4.1259]
[1735630426476,0.29848,3354.8,3354.7,4.1259]
[1735630427582,0.29848,3354.8,3354.7,0.9181]
[1735630430287,0.29847,3354.9,3354.7,0.9181]
[1735630430675,0.29846,3355.1,3354.8,0.29848]
[1735630431084,2.2478318,3355.3,3354.8,0.29848]
[1735630431386,2.2478318,3355.3,3354.7,0.9181]
[1735630431579,2.2478318,3355.3,3354.7,1.21658]
[1735630431580,0.29846,3355.0,3354.7,1.21658]
[1735630431886,0.29844,3355.2,3354.7,0.9181]
[1735630432087,2.2478318,3355.3,3354.7,0.9181]
[1735630432385,0.29848,3354.8,3354.7,0.9181]
[1735630432585,0.29847,3354.9,3354.7,0.9181]
[1735630432997,2.2478318,3355.3,3354.7,1.21659]
[1735630432998,0.29846,3355.0,3354.7,1.21659]
[1735630433575,0.29846,3355.0,3354.8,0.29848]
[1735630434079,2.2478318,3355.3,3354.8,0.29848]
[1735630434280,2.2478318,3355.3,3354.7,0.9181]
[1735630434281,0.29845,3355.2,3354.9,0.29846]
[1735630434686,2.5462718,3355.3,3355.0,0.29846]
[1735630434988,0.29845,3355.2,3354.7,0.9181]
[1735630435180,0.29846,3355.1,3354.7,0.9181]
[1735630435385,0.29846,3355.1,3354.8,0.29847]
[1735630436483,2.5462718,3355.3,3355.0,0.29845]
[1735630436685,2.5462718,3355.3,3354.8,0.29847]
[1735630436686,0.29846,3355.1,3354.8,0.29847]
[1735630436988,0.29846,3355.0,3354.8,0.29847]
[1735630437183,0.29845,3355.1,3354.8,0.29847]
[1735630437790,0.29845,3355.1,3354.9,0.29847]
[1735630438586,2.2478318,3355.3,3354.7,0.9181]
[1735630438794,0.29847,3355.0,3354.7,1.21658]
[1735630439885,2.2478318,3355.3,3354.7,0.9181]
[1735630440282,0.29845,3355.2,3354.7,0.9181]
[1735630440487,0.29843,3355.4,3355.1,0.29844]
[1735630440687,0.29844,3355.3,3355.2,0.4548]
[1735630440887,2.5462718,3355.3,3355.2,0.4548]
[1735630441190,2.2478318,3355.3,3354.8,0.29847]
[1735630441385,2.2478318,3355.3,3354.8,0.75327]
[1735630441386,0.29846,3355.1,3354.8,0.75327]
[1735630442184,0.29846,3355.1,3354.9,0.29847]
[1735630442388,2.2478318,3355.3,3354.8,0.75328]
[1735630442389,0.29846,3355.0,3354.8,0.75328]
[1735630442887,0.29846,3355.0,3354.8,0.4548]
[1735630443188,0.29846,3355.1,3354.8,0.75327]
[1735630444292,2.2478318,3355.3,3354.8,0.4548]
[1735630444497,0.29847,3355.0,3354.8,0.4548]
[1735630444695,0.29847,3355.0,3354.8,0.75327]
[1735630445591,0.29847,3354.9,3354.8,0.4548]
[1735630445993,0.29846,3355.0,3354.8,0.75327]
[1735630446193,0.29846,3355.1,3354.8,0.75327]
[1735630446693,0.29845,3355.2,3355.0,0.29846]
[1735630446888,2.2478318,3355.3,3355.0,0.29846]
[1735630447097,2.5462718,3355.3,3355.1,0.29845]
[1735630447294,0.29844,3355.2,3355.0,0.29845]
[1735630447497,0.29845,3355.1,3354.9,0.29846]
[1735630447695,0.29844,3355.2,3354.8,0.4548]
[1735630447892,2.5462718,3355.3,3355.1,0.29844]
[1735630449699,2.2478318,3355.3,3355.1,0.29844]
[1735630450097,2.5462718,3355.3,3355.1,0.29844]
[1735630450298,3.50623,3355.4,3354.8,0.4548]
[1735630450499,3.50623,3355.4,3355.2,0.29844]
[1735630450801,3.50623,3355.4,3355.3,0.8667]
[1735630451799,3.1190318,3355.6,3355.3,1.16513]
[1735630452098,0.4209,3355.6,3355.5,0.29842]
[1735630452296,2.33477191,3355.7,3355.6,0.29841]
[1735630452597,2.33477191,3355.7,3355.5,0.29841]
[1735630452799,2.63316191,3355.8,3355.5,0.29841]
[1735630453699,2.33477191,3355.8,3355.4,3.6351]
[1735630454100,2.33477191,3355.7,3355.5,0.29841]
[1735630454807,2.33477191,3355.7,3355.4,3.6351]
[1735630455005,2.33477191,3355.7,3355.5,0.29841]
[1735630455516,2.33477191,3355.6,3355.5,0.29841]
[1735630456105,2.33477191,3355.6,3355.4,3.6351]
[1735630456303,2.33477191,3355.6,3355.4,3.2078]
[1735630456604,0.29842,3355.5,3355.4,3.2078]
[1735630456905,0.29842,3355.5,3355.3,0.8667]
[1735630456906,2.5462518,3355.5,3355.3,0.8667]
[1735630457804,0.29842,3355.4,3355.3,0.4197]
[1735630458203,6.92520979,3355.5,3355.1,3.2078]
[1735630458504,6.92520979,3355.5,3355.0,0.4535]
[1735630458505,2.2478318,3355.2,3355.0,0.75196]
[1735630458701,2.2478318,3355.2,3355.0,0.4535]
[1735630458905,2.2478318,3355.2,3355.1,0.29845]
[1735630459411,4.97581799,3355.3,3355.1,0.29845]
[1735630460004,4.97581799,3355.3,3355.0,0.4535]
[1735630460308,4.97581799,3355.3,3355.1,0.29845]
[1735630460503,4.67737799,3355.2,3355.1,0.29845]
[1735630461211,4.97581799,3355.2,3355.0,0.75196]
[1735630461413,4.67737799,3355.2,3355.1,0.29845]
[1735630461906,4.97581799,3355.2,3355.0,0.75196]
[1735630462305,0.29846,3355.0,3354.9,0.444]
[1735630462511,6.92520979,3355.2,3354.7,3.2078]
[1735630462814,0.75898,3354.9,3354.7,3.2078]
[1735630463510,3.5187846,3354.8,3354.7,3.2078]
[1735630463713,3.8172646,3354.8,3354.7,3.2078]
[1735630464707,0.29848,3354.8,3354.7,3.2078]
[1735630466117,5.13787799,3354.9,3354.7,3.2078]
[1735630466317,5.43634799,3354.9,3354.7,3.2078]
[1735630468021,5.43634799,3354.9,3354.6,4.36659]
[1735630468220,5.13787799,3354.9,3354.6,4.0681]
[1735630468518,4.67737799,3354.8,3354.6,4.0681]
[1735630468718,0.29849,3354.7,3354.6,4.0681]
[1735630470121,4.67737799,3354.7,3354.6,4.0681]
[1735630470418,4.67737799,3354.7,3354.6,4.3666]
[1735630472325,3.98567799,3354.7,3354.6,4.3666]
[1735630474031,2.34645322,3354.7,3354.6,4.3666]
[1735630475023,3.51967983,3354.8,3354.6,4.0681]
[1735630475233,3.51967983,3354.8,3354.7,0.29849]
[1735630477728,0.73156,3355.0,3354.6,4.0681]
[1735630477933,0.4331,3355.0,3354.9,0.29847]
[1735630478230,5.85499498,3355.1,3354.6,4.0681]
[1735630478425,5.85499498,3355.1,3355.0,0.29846]
[1735630479128,5.85499498,3355.3,3354.9,0.29846]
[1735630479516,0.29846,3355.1,3354.9,0.29846]
[1735630479719,0.4557,3355.0,3354.9,0.29846]
[1735630480030,0.4557,3355.0,3354.6,4.0681]
[1735630480234,0.4557,3355.0,3354.8,0.29847]
[1735630480235,0.4183,3354.9,3354.8,0.29847]
[1735630483628,0.4557,3355.0,3354.6,4.0681]
[1735630483831,5.85499498,3355.1,3355.0,0.29846]
[1735630484032,5.85499498,3355.1,3355.0,3.50626]
[1735630485522,0.449,3355.4,3355.2,0.29844]
[1735630485523,5.85499498,3355.3,3355.2,0.29844]
[1735630486132,5.85499498,3355.3,3355.2,0.72284]
[1735630486929,5.85499498,3355.3,3355.2,0.4244]
[1735630487129,0.74743,3355.4,3355.2,0.4244]
[1735630487130,6.60242498,3355.4,3355.2,0.4244]
[1735630487333,6.60242498,3355.4,3355.2,0.72284]
[1735630487838,6.30399498,3355.4,3355.0,3.2078]
[1735630488040,0.29845,3355.1,3355.0,3.2078]
[1735630489039,0.29845,3355.1,3354.8,0.29847]
[1735630489232,0.4589,3355.0,3354.8,0.29847]
[1735630489544,0.4589,3355.0,3354.6,41.6656]
[1735630489734,0.4598,3354.9,3354.6,0.8656]
[1735630489933,0.29849,3354.7,3354.5,3.5063]
[1735630490139,0.29849,3354.7,3354.5,0.2985]
[1735630490441,0.29849,3354.7,3354.5,41.0985]
[1735630491235,5.85499498,3354.8,3354.5,40.8]
[1735630491436,6.15347498,3354.8,3354.6,0.2985]
[1735630491830,6.15347498,3354.8,3354.5,0.2985]
[1735630491831,0.29849,3354.7,3354.5,0.2985]
[1735630492141,6.15347498,3354.8,3354.6,0.2985]
[1735630492537,6.15347498,3354.8,3354.3,40.8]
[1735630492538,6.15347498,3354.8,3354.5,0.2985]
[1735630492941,0.29849,3354.7,3354.4,0.29851]
[1735630493639,5.85499498,3354.8,3354.3,40.8]
[1735630494144,2.5463318,3354.6,3354.3,41.09852]
[1735630494640,2.2478318,3354.6,3354.4,0.29851]
[1735630495242,0.29851,3354.5,3354.3,40.8]
[1735630495541,2.2478318,3354.6,3354.3,40.8]
[1735630495542,0.71491,3354.4,3354.3,40.8]
[1735630495732,1.14661,3354.4,3354.3,40.8]
[1735630495930,0.29854,3354.1,3353.8,0.8831]
[1735630496134,2.5463618,3354.2,3353.9,0.29856]
[1735630496938,2.2478318,3354.2,3353.9,0.29855]
[1735630497439,2.5463618,3354.2,3353.9,0.29855]
[1735630497638,3.51818443,3354.0,3353.9,0.29855]
[1735630498742,3.51818443,3354.1,3353.9,0.29855]
[1735630500744,0.29855,3354.0,3353.6,3.96298]
[1735630500940,2.2478318,3353.9,3353.6,3.2078]
[1735630501148,0.432,3353.8,3353.7,0.29857]
[1735630504141,2.77605369,3353.8,3353.7,0.29857]
[1735630504943,2.34405369,3353.8,3353.7,0.29857]
[1735630510852,5.02048549,3353.9,3353.6,3.2078]
[1735630511047,5.02048549,3353.9,3353.8,0.29857]
[1735630512150,5.02048549,3353.9,3353.7,40.8]
[1735630512343,5.02048549,3353.9,3353.7,41.09857]
[1735630513053,5.02048549,3353.9,3353.7,40.8]
[1735630513352,5.31905549,3353.9,3353.7,40.8]
[1735630513655,2.34405369,3353.8,3353.7,41.09858]
[1735630514149,2.34405369,3353.8,3353.7,40.8]
[1735630514451,2.64262369,3353.8,3353.7,40.8]
[1735630515045,2.34405369,3353.8,3353.7,40.8]
[1735630515249,2.34405369,3353.8,3353.7,41.09858]
[1735630515650,2.34405369,3353.8,3353.7,40.8]
[1735630516954,2.64262369,3353.8,3353.7,40.8]
[1735630517751,0.29857,3353.8,3353.7,40.8]
[1735630518151,6.19461623,3353.9,3353.3,1.3173]
[1735630518457,2.5464218,3353.6,3353.4,0.2986]
[1735630518746,0.29859,3353.5,3353.3,1.61591]
[1735630518955,0.29859,3353.5,3353.3,1.3173]
[1735630519148,0.4177,3353.4,3353.3,1.61591]
[1735630519348,0.4177,3353.4,3353.3,42.41591]
[1735630519754,0.4177,3353.4,3353.3,1.61591]
[1735630519953,0.4177,3353.4,3353.3,1.3173]
[1735630520157,0.4177,3353.4,3353.3,0.8681]
[1735630520551,0.7163,3353.4,3353.3,0.8681]
[1735630521550,6.6127,3353.4,3352.4,3.2078]
[1735630521753,2.2478318,3352.6,3352.5,1.64128]
[1735630523250,2.2478318,3352.6,3352.5,0.8898]
[1735630523548,2.5465018,3352.6,3352.5,0.8898]
[1735630523954,2.2478318,3352.6,3352.5,0.8898]
[1735630524260,2.5465018,3352.6,3352.5,0.8898]
[1735630524758,2.2478318,3352.6,3352.2,0.4513]
[1735630525052,0.29868,3352.5,3352.2,0.75001]
[1735630525556,0.29868,3352.5,3352.3,0.2987]
[1735630525759,2.2478318,3352.6,3352.2,0.4513]
[1735630525958,2.2478318,3352.6,3352.2,0.75001]
[1735630525959,2.2478318,3352.3,3352.2,0.75001]
[1735630526549,2.2478318,3352.3,3352.1,0.9037]
[1735630526763,0.29872,3352.1,3351.7,0.72925]
[1735630526959,2.2478318,3351.9,3351.8,0.4382]
[1735630528056,2.2478318,3351.9,3351.8,41.2382]
[1735630528660,2.2478318,3351.9,3351.8,41.53694]
[1735630531360,2.2478318,3351.9,3351.8,41.09874]
[1735630534463,2.2478318,3351.9,3351.8,40.8]
[1735630536764,2.6901318,3352.2,3351.8,40.8]
[1735630536965,2.2478318,3352.2,3352.1,0.29872]
[1735630538367,2.2478318,3352.2,3352.0,0.881]
[1735630538368,5.54838477,3352.8,3352.0,0.881]
[1735630538564,5.54838477,3352.8,3352.7,0.29866]
[1735630539162,3.1446318,3353.1,3352.3,3.2078]
[1735630539163,5.48521657,3353.1,3352.3,3.2078]
[1735630539356,2.34058477,3353.1,3353.0,0.29864]
[1735630539969,0.08868477,3353.1,3353.0,0.29864]
[1735630540268,2.82628443,3353.3,3353.2,0.29862]
[1735630540465,2.82628443,3353.3,3353.2,3.50642]
[1735630540773,2.2478318,3354.0,3353.9,0.29856]
[1735630541668,2.6951318,3354.3,3354.2,0.29853]
[1735630542063,2.2478318,3354.3,3354.2,0.29853]
[1735630542266,2.2478318,3354.3,3354.0,3.2078]
[1735630542267,2.2478318,3354.6,3354.3,0.29852]
[1735630542462,2.2478318,3354.6,3354.5,0.2985]
[1735630542663,2.2478318,3354.6,3354.4,0.29851]
[1735630542863,2.2478318,3354.6,3354.0,3.2078]
[1735630543074,2.2478318,3354.3,3354.0,3.2078]
[1735630543266,2.2478318,3354.3,3354.2,0.29853]
[1735630543871,2.2478318,3354.3,3354.0,3.2078]
[1735630544068,2.2478318,3354.3,3353.9,0.29855]
[1735630544266,2.2478318,3354.3,3354.0,0.29855]
[1735630544567,2.2478318,3354.3,3354.2,0.29853]
[1735630545473,2.2478318,3354.3,3354.1,0.29853]
[1735630545675,2.2478318,3354.3,3354.0,0.29855]
[1735630547879,2.2478318,3354.3,3353.9,3.2078]
[1735630547880,2.2478318,3354.3,3354.1,0.29853]
[1735630548178,2.2478318,3354.3,3354.2,0.30028787]
[1735630549180,2.2478318,3354.3,3354.2,0.00175787]
[1735630549474,2.2478318,3354.3,3354.2,0.30028787]
[1735630550273,2.2478318,3354.6,3354.3,0.29852]
[1735630550478,2.2478318,3354.6,3354.4,0.29851]
[1735630550776,2.2478318,3354.6,3354.2,0.00175787]
[1735630550777,2.2478318,3354.6,3354.3,0.29852]
[1735630550971,0.4457,3354.9,3354.3,3.2078]
[1735630550972,2.6935318,3354.9,3354.3,3.2078]
[1735630551171,2.6935318,3354.9,3354.6,0.29849]
[1735630551570,2.6935318,3354.9,3354.6,40.8]
[1735630551778,2.6935318,3354.9,3354.7,0.29848]
[1735630552877,2.6935318,3354.9,3354.6,0.29849]
[1735630553278,2.6935318,3354.9,3354.5,40.8]
[1735630553576,2.6935318,3354.9,3354.7,0.29848]
[1735630557177,2.6935318,3354.9,3354.5,40.8]
[1735630557473,2.6935318,3354.9,3354.6,0.29849]
[1735630560285,2.6935318,3354.9,3354.4,0.4367]
[1735630560475,2.2478318,3354.5,3354.3,3.50632]
[1735630565388,2.2478318,3354.5,3354.2,0.00175787]
[1735630565578,0.73122,3354.4,3354.2,0.00175787]
[1735630565884,0.4327,3354.4,3354.2,0.30028787]
[1735630566280,0.4327,3354.4,3354.2,0.00175787]
[1735630566488,0.73122,3354.4,3354.2,0.00175787]